Body Name,Body,Service Level,Expense Type,Expense Code,Narrative,Date,Transaction Number,Amount,Capital and Revenue,Supplier Name,Supplier ID
South Ribble Council,http://statistics.data.gov.uk/doc/local-authority/30UN,Democratic Services,Other Misc,4421,"Use of the venue for the Parliamentary Elections on Thursday 8 June 2017.  Access required from approx. 6.15am 10.15pm.  ",31/05/2017,0000432207,400.00,Revenue, St Teresa`s Social Club APCMC,131974
South Ribble Council,http://statistics.data.gov.uk/doc/local-authority/30UN,Democratic Services,Other Misc,4421,Venue for the Lancashire County Council Elections on Thursday 4 May 2017.Accessfrom approx. 6.15am until 10.15pm,26/05/2017,0000432212,400.00,Revenue, St Teresa`s Social Club APCMC,131974
South Ribble Council,http://statistics.data.gov.uk/doc/local-authority/30UN,Democratic Services,Other Misc,4421,Use of your venue for the Penwortham Town Development Plan Referendum on Thursday 9 February 2017.,26/05/2017,0000432215,400.00,Revenue, St Teresa`s Social Club APCMC,131974
South Ribble Council,http://statistics.data.gov.uk/doc/local-authority/30UN,Area 2 - Waste Transport/Eastern & Central Teams,External Contractors Charges,4570,1 SPEC REPAIR TMR03A2 JFC8614,26/05/2017,0000432116,438.32,Revenue,A C HYDRAULIC & PNEUMATIC SERVICES LTD,00093062
South Ribble Council,http://statistics.data.gov.uk/doc/local-authority/30UN,Information Services,Peripherals,4247,"12 x Galaxy Samsung S2 9.7 Book cover keyboard @ 106.00 each, as per quote ref. South Ribble Key 250417",24/05/2017,0000431702,"1,272.00",Revenue,ACS SYSTEMS UK LTD,00070166
South Ribble Council,http://statistics.data.gov.uk/doc/local-authority/30UN,Development Enterprise & Comm Mgnt,Other Misc,4851,Supply 500 red & 500 blue children�s baseball caps with full colour Truck Trail badge fused on front,05/05/2017,0000431678,"2,290.00",Revenue,AD OPTIONS LTD,00101556
South Ribble Council,http://statistics.data.gov.uk/doc/local-authority/30UN,Development Enterprise & Comm Mgnt,Other Misc,4851,"Supply 2,000 assorted coloured 12� balloons with Truck Trail logo",05/05/2017,0000431678,390.00,Revenue,AD OPTIONS LTD,00101556
South Ribble Council,http://statistics.data.gov.uk/doc/local-authority/30UN,Development Enterprise & Comm Mgnt,Other Misc,4851,"Supply 1,000 pencil sets in plastic case",05/05/2017,0000431678,390.00,Revenue,AD OPTIONS LTD,00101556
South Ribble Council,http://statistics.data.gov.uk/doc/local-authority/30UN,Area 2 - Waste Transport/Eastern & Central Teams,Materials General,4040,1 x BRUSH FRAME - 1 x GAS STRUTT - 2 x ROSE JOINTS - AE14AYF - JFC8615,17/05/2017,0000431952,345.46,Revenue,AEBI SCHMIDT UK LTD,00085672
South Ribble Council,http://statistics.data.gov.uk/doc/local-authority/30UN,Area 2 - Waste Transport/Eastern & Central Teams,Materials General,4040,1 x mirror - AE12AXR - JFC8616,17/05/2017,0000431952,68.14,Revenue,AEBI SCHMIDT UK LTD,00085672
South Ribble Council,http://statistics.data.gov.uk/doc/local-authority/30UN,Area 2 - Waste Transport/Eastern & Central Teams,Materials General,4040,1 X GAS STRUTT - 2 X ROSE JOINTS -AE14AYG - JFC8605,17/05/2017,0000431952,158.44,Revenue,AEBI SCHMIDT UK LTD,00085672
South Ribble Council,http://statistics.data.gov.uk/doc/local-authority/30UN,Area 2 - Waste Transport/Eastern & Central Teams,Materials General,4040,freight,17/05/2017,0000431952,15.00,Revenue,AEBI SCHMIDT UK LTD,00085672
South Ribble Council,http://statistics.data.gov.uk/doc/local-authority/30UN,Revenues Plus,Financial,4811,po transactions,10/05/2017,0000431793,"1,276.17",Revenue,ALLPAY LTD,00122276
South Ribble Council,http://statistics.data.gov.uk/doc/local-authority/30UN,Revenues Plus,Financial,4811,paypoint,10/05/2017,0000431793,193.18,Revenue,ALLPAY LTD,00122276
South Ribble Council,http://statistics.data.gov.uk/doc/local-authority/30UN,Revenues Plus,Financial,4811,webconnect,10/05/2017,0000431793,46.56,Revenue,ALLPAY LTD,00122276
South Ribble Council,http://statistics.data.gov.uk/doc/local-authority/30UN,Property Services,Rep & Maint Premises,2020,2017 / 2018 annual metering charge for the civic centre,10/05/2017,0000431592,432.00,Revenue,AMEY Metering Ltd,131991
South Ribble Council,http://statistics.data.gov.uk/doc/local-authority/30UN,Democratic Services,Repair Costs,4059,Service & Repair of 7 No/DDU103P Microphone Units delivery to site on 29/03/17 by visiting engineer (Removing delivery charge),17/05/2017,0000431979,525.00,Revenue,AUDITEL,130495
South Ribble Council,http://statistics.data.gov.uk/doc/local-authority/30UN,Property Services,Rep & Maint Premises,2020,Annual Contract 2017/2018 for servicing the doors at  Moss Side Depot as per estimate 521 24.3.2017,10/05/2017,0000431679,490.00,Revenue,AVALON DOORS & AWNINGS LTD,131051
South Ribble Council,http://statistics.data.gov.uk/doc/local-authority/30UN,Property Services,Rep & Maint Premises,2020,Annual Contract for service of doors at Leyland Market Various Stalls 2017/2018 as per estimate  521 24.3.2017,10/05/2017,0000431761,430.00,Revenue,AVALON DOORS & AWNINGS LTD,131051
South Ribble Council,http://statistics.data.gov.uk/doc/local-authority/30UN,Information Services,Operational Furniture & Equip,4010,7773736   High Back chair charcoal,05/05/2017,0000431661,755.19,Revenue,BANNER GROUP LTD,00081485
South Ribble Council,http://statistics.data.gov.uk/doc/local-authority/30UN,Information Services,Operational Furniture & Equip,4010,7772952  Desk screen 1600mm Blue,05/05/2017,0000431661,113.37,Revenue,BANNER GROUP LTD,00081485
South Ribble Council,http://statistics.data.gov.uk/doc/local-authority/30UN,Information Services,Operational Furniture & Equip,4010,7772948 Desk screen 1200mm Blue,05/05/2017,0000431661,103.84,Revenue,BANNER GROUP LTD,00081485
South Ribble Council,http://statistics.data.gov.uk/doc/local-authority/30UN,Information Services,Operational Furniture & Equip,4010,7773743 Black  High back Operator chair,05/05/2017,0000431661,215.30,Revenue,BANNER GROUP LTD,00081485
South Ribble Council,http://statistics.data.gov.uk/doc/local-authority/30UN,Information Services,Operational Furniture & Equip,4010,7783686 Charcoal Draughtsman Chair,05/05/2017,0000431661,163.61,Revenue,BANNER GROUP LTD,00081485
South Ribble Council,http://statistics.data.gov.uk/doc/local-authority/30UN,Information Services,Operational Furniture & Equip,4010,7773580  Folding Arms,05/05/2017,0000431661,30.57,Revenue,BANNER GROUP LTD,00081485
South Ribble Council,http://statistics.data.gov.uk/doc/local-authority/30UN,Shared Financial Services,Operational Furniture & Equip,4010,1973617   Nobo  Non Magnetic White eboard,05/05/2017,0000431798,387.10,Revenue,BANNER GROUP LTD,00081485
South Ribble Council,http://statistics.data.gov.uk/doc/local-authority/30UN,Shared Financial Services,Operational Furniture & Equip,4010,1500005 Drywipe Markers pk 4,05/05/2017,0000431798,3.40,Revenue,BANNER GROUP LTD,00081485
South Ribble Council,http://statistics.data.gov.uk/doc/local-authority/30UN,Shared Financial Services,Operational Furniture & Equip,4010,9516111  Pukka Exec A4 pad pk 3,05/05/2017,0000431798,12.18,Revenue,BANNER GROUP LTD,00081485
South Ribble Council,http://statistics.data.gov.uk/doc/local-authority/30UN,Shared Financial Services,Operational Furniture & Equip,4010,6226887  Fellowes Easy Glide Gel Mouse Pad,05/05/2017,0000431798,18.80,Revenue,BANNER GROUP LTD,00081485
South Ribble Council,http://statistics.data.gov.uk/doc/local-authority/30UN,Shared Financial Services,Operational Furniture & Equip,4010,8417174 White Boardclene Kit,05/05/2017,0000431798,7.38,Revenue,BANNER GROUP LTD,00081485
South Ribble Council,http://statistics.data.gov.uk/doc/local-authority/30UN,Shared Financial Services,Operational Furniture & Equip,4010,6391714  Desk Lamp,05/05/2017,0000431798,23.53,Revenue,BANNER GROUP LTD,00081485
South Ribble Council,http://statistics.data.gov.uk/doc/local-authority/30UN,Shared Financial Services,Operational Furniture & Equip,4010,1374659 NOBO Assorted Drawing Pin Magnets,05/05/2017,0000431798,17.18,Revenue,BANNER GROUP LTD,00081485
South Ribble Council,http://statistics.data.gov.uk/doc/local-authority/30UN,Shared Financial Services,Operational Furniture & Equip,4010,7771454 Express Standard Locker 2 Door W300 xD450xH1800mm Light Grey/Blue MC00154,31/05/2017,0000432337,563.56,Revenue,BANNER GROUP LTD,00081485
South Ribble Council,http://statistics.data.gov.uk/doc/local-authority/30UN,Planning,Professional Fees,4510,"Joint employment land study. On behalf of Preston City Council 20% of final fee 14,062.50 PCC to be recharged at a later date",05/05/2017,0000431753,"2,812.50",Revenue,BE LTD,130661
South Ribble Council,http://statistics.data.gov.uk/doc/local-authority/30UN,Property Services,Rep & Maint Premises,2020,Annual Contract 2017/2018 Electrical Testing and Fan Convector Maintenance at WP and MH Sports Pavillions,10/05/2017,0000431877,"1,104.00",Revenue,BELEC ELECTRICAL LTD,130290
South Ribble Council,http://statistics.data.gov.uk/doc/local-authority/30UN,Homelessness,Contributions,4730,"Payment of Bond and Rent in advance from Landlord Incentive Scheme for NAME REDACTED, ADDRESS REDACTED",19/05/2017,0000432091,"1,140.00",Revenue,BRIDGFORDS LETTINGS,131026
South Ribble Council,http://statistics.data.gov.uk/doc/local-authority/30UN,Development Enterprise & Comm Mgnt,Other Misc,4851,Leyland Christmas Truck Trail Launch - Friday 28th April Hire of bus and museum facilities,24/05/2017,0000431935,500.00,Revenue,BRITISH COMMERCIAL VEHICLE MUSEUM,00051897
South Ribble Council,http://statistics.data.gov.uk/doc/local-authority/30UN,Regeneration,Capital Expenditure,C234,Bamber Bridge street furniture,10/05/2017,0000431476,"3,980.00",Revenue,BROXAP LTD,00028736
South Ribble Council,http://statistics.data.gov.uk/doc/local-authority/30UN,Area 3 - Parks/Leyland East West,Materials General,4040,WINCHESTER BOOT WIPER 1.8m -  BXSS PS.WI-6,17/05/2017,0000431951,285.00,Revenue,BROXAP LTD,00028736
South Ribble Council,http://statistics.data.gov.uk/doc/local-authority/30UN,Environmental Health,Operational Furniture & Equip,4010,Renewal Fee for BRE Excess Cold Calculator per NAME REDACTED,12/05/2017,0000431849,"1,000.00",Revenue,BUILDING RESEARCH ESTABLISHMENT LTD,131951
South Ribble Council,http://statistics.data.gov.uk/doc/local-authority/30UN,Neighbourhood Admin & Support,Materials General,4040, Fast Set Post Mix - 02110336,31/05/2017,0000432164,234.60,Revenue,C & W BERRY LTD,00015231
South Ribble Council,http://statistics.data.gov.uk/doc/local-authority/30UN,Neighbourhood Admin & Support,Materials General,4040,RAWL BOLT - M10 X 50L -  (BOX OF 25) 03070217,31/05/2017,0000432164,42.00,Revenue,C & W BERRY LTD,00015231
South Ribble Council,http://statistics.data.gov.uk/doc/local-authority/30UN,Revenues Plus,Peripherals,4242,DWP LA Data Sharing Programme,12/05/2017,0000431943,"7,081.65",Revenue,CAPITA BUSINESS SERVICES LTD,00117948
South Ribble Council,http://statistics.data.gov.uk/doc/local-authority/30UN,Revenues Plus,Peripherals,4242,Risk and Verification Portal. New claims and ATLAS,24/05/2017,0000432066,"10,783.56",Revenue,CAPITA BUSINESS SERVICES LTD,00122179
South Ribble Council,http://statistics.data.gov.uk/doc/local-authority/30UN,HR & Communications,Recruitment Expenses,1500,RECRUIMENT FOR THE CEO,19/05/2017,0000432053,"4,174.00",Revenue,CAPITA RESOURCING LTD,00019127
South Ribble Council,http://statistics.data.gov.uk/doc/local-authority/30UN,Homelessness,Contractors Charges 5,5311,"Cotswold house SRBC placement ( on behalf of CSC) Flat 13, 28 days ",03/05/2017,0000431602,987.84,Revenue,CHORLEY BOROUGH COUNCIL,00017352
South Ribble Council,http://statistics.data.gov.uk/doc/local-authority/30UN,Homelessness,Contractors Charges 5,5311,"Cotswold House, SRBC placement flat 1 987.96 + VAT to cover from 06/04/2017  03/05/2017 inclusive.",10/05/2017,0000431834,987.96,Revenue,CHORLEY BOROUGH COUNCIL,00017352
South Ribble Council,http://statistics.data.gov.uk/doc/local-authority/30UN,Homelessness,Contributions,4730,Cotswold House Flat 20 block booking for April 30 days at 35.28 total 1058.40,10/05/2017,0000431835,"1,058.40",Revenue,CHORLEY BOROUGH COUNCIL,00017352
South Ribble Council,http://statistics.data.gov.uk/doc/local-authority/30UN,Homelessness,Contractors Charges 5,5311,"Flat 1 Cotswold House, 04/05/2017  11/05/2017  8 days @ 35.28 = 282.24 + VAT.",19/05/2017,0000432094,282.24,Revenue,CHORLEY BOROUGH COUNCIL,00017352
South Ribble Council,http://statistics.data.gov.uk/doc/local-authority/30UN,Property Services,Rep & Maint Fixed Plant,2035,2017 / 2018 annual contract for the maintenance of intruder alarms at the Civic Centre,12/05/2017,0000431972,"2,095.05",Revenue,CHUBB ELECTRONIC SECURITY SYSTEMS LTD,00090625
South Ribble Council,http://statistics.data.gov.uk/doc/local-authority/30UN,Property Services,Rep & Maint Fixed Plant,2035,2017 / 2018 annual contract for the maintenance of intruder alarms at Leyland museum & exhibition centre,12/05/2017,0000431994,791.80,Revenue,CHUBB ELECTRONIC SECURITY SYSTEMS LTD,00090625
South Ribble Council,http://statistics.data.gov.uk/doc/local-authority/30UN,Property Services,Rep & Maint Fixed Plant,2035,2017 / 2018 annual contract for the maintenance of intruder alarms at worden  arts craft centre,12/05/2017,0000431995,916.45,Revenue,CHUBB ELECTRONIC SECURITY SYSTEMS LTD,00090625
South Ribble Council,http://statistics.data.gov.uk/doc/local-authority/30UN,Area 2 - Waste Transport/Eastern & Central Teams,Materials General,4040,"1 BRAKE CALIPER, 1 SET DISC PADS MX04YNL JFC8555",17/05/2017,0000432039,453.60,Revenue,CICELEY COMMERCIALS LTD,00059381
South Ribble Council,http://statistics.data.gov.uk/doc/local-authority/30UN,Shared Financial Services,Publications,4140,CIPFA Publications Subscription 1st April 2017 - 31st March 2018,19/05/2017,0000432001,"2,632.50",Revenue,CIPFA BUSINESS LTD,00017187
South Ribble Council,http://statistics.data.gov.uk/doc/local-authority/30UN,Information Services,Peripherals,4248,PO was raised on abritas ac but civica took them over,10/05/2017,0000431759,518.22,Revenue,CIVICA UK LTD,00102717
South Ribble Council,http://statistics.data.gov.uk/doc/local-authority/30UN,Information Services,Peripherals,4248,"Hosting for New Progress, Annual support & maintenance, SSL security on test site, Enhanced disaster recovery service",24/05/2017,0000432216,"4,486.65",Revenue,CIVICA UK LTD,00102717
South Ribble Council,http://statistics.data.gov.uk/doc/local-authority/30UN,Information Services,Peripherals,4248,"Hosting, Annual support & maintenance for SRBC, SSL security on test site, Enhanced disaster recovery service",24/05/2017,0000432217,"9,413.25",Revenue,CIVICA UK LTD,00102717
South Ribble Council,http://statistics.data.gov.uk/doc/local-authority/30UN,Information Services,Peripherals,4248,"Hosting for Accent Foundation, Annual support & maintenance, SSL security on test site, Enhanced disaster recovery service",24/05/2017,0000432218,"4,486.65",Revenue,CIVICA UK LTD,00102717
South Ribble Council,http://statistics.data.gov.uk/doc/local-authority/30UN,Information Services,Peripherals,4248,"EDRMS Licence, Support & Maintenance for period 01/07/17 - 30/06/18 - CGPM000110",31/05/2017,0000432277,"14,527.87",Revenue,CIVICA UK LTD,00102717
South Ribble Council,http://statistics.data.gov.uk/doc/local-authority/30UN,Property Services,Rep & Maint Premises,2020,Unit 6 Forward Ind Estate - rear external gate To Manufacture and install hardwood framed and boarded gate to final exit doors,10/05/2017,0000431812,562.50,Revenue,COOPER BESPOKE JOINERY LTD,00104456
South Ribble Council,http://statistics.data.gov.uk/doc/local-authority/30UN,Property Services,Rep & Maint Premises,2020,materials,10/05/2017,0000431812,298.90,Revenue,COOPER BESPOKE JOINERY LTD,00104456
South Ribble Council,http://statistics.data.gov.uk/doc/local-authority/30UN,Property Services,Rep & Maint Premises,2020,Unit 6 Forward Ind Estate - front entrance door To provide and fit Solidor composite door and uPVC window frame and glazing to,10/05/2017,0000431813,280.50,Revenue,COOPER BESPOKE JOINERY LTD,00104456
South Ribble Council,http://statistics.data.gov.uk/doc/local-authority/30UN,Property Services,Rep & Maint Premises,2020,materials,10/05/2017,0000431813,983.70,Revenue,COOPER BESPOKE JOINERY LTD,00104456
South Ribble Council,http://statistics.data.gov.uk/doc/local-authority/30UN,Planning,Microfilming,4151,Maintenance for Microfiche scanner,12/05/2017,0000431805,395.00,Revenue,Covergold Limited,131096
South Ribble Council,http://statistics.data.gov.uk/doc/local-authority/30UN,Area 3 - Parks/Leyland East West,Grounds Maint Cntrctrs Chgs,4657,MANUFACTURE OF MOULDS & CASTING 65 No WHOLE & 8 No HALF BESPOKE BALUSTERS AS PER QUOTE,12/05/2017,0000431727,"2,607.00",Revenue,Cranborne Stone Ltd,132238
South Ribble Council,http://statistics.data.gov.uk/doc/local-authority/30UN,Revenues Plus,Postage,4291,Postage March 17 2689.72,17/05/2017,0000431973,"2,689.72",Revenue,CRITIQOM,131053
South Ribble Council,http://statistics.data.gov.uk/doc/local-authority/30UN,Revenues Plus,Postage,4291,"Postage April 17 2460.63 Postage May 17 3000.00",17/05/2017,0000431974,"1,200.20",Revenue,CRITIQOM,131053
South Ribble Council,http://statistics.data.gov.uk/doc/local-authority/30UN,Revenues Plus,Stationery,4130,Stationery March 17,17/05/2017,0000431976,"1,226.57",Revenue,CRITIQOM,131053
South Ribble Council,http://statistics.data.gov.uk/doc/local-authority/30UN,Revenues Plus,Postage,4291,"Postage April 17 2460.63 Postage May 17 3000.00",17/05/2017,0000431990,820.97,Revenue,CRITIQOM,131053
South Ribble Council,http://statistics.data.gov.uk/doc/local-authority/30UN,Revenues Plus,Postage,4291,"Postage April 17 2460.63 Postage May 17 3000.00",17/05/2017,0000431992,439.46,Revenue,CRITIQOM,131053
South Ribble Council,http://statistics.data.gov.uk/doc/local-authority/30UN,Revenues Plus,Postage,4291,"Postage April 17 2460.63 Postage May 17 3000.00",19/05/2017,0000432097,317.53,Revenue,CRITIQOM,131053
South Ribble Council,http://statistics.data.gov.uk/doc/local-authority/30UN,Revenues Plus,Stationery,4130,"Stationery April 17 532.20 Stationery May 17 700.00",26/05/2017,0000432247,447.73,Revenue,CRITIQOM,131053
South Ribble Council,http://statistics.data.gov.uk/doc/local-authority/30UN,Revenues Plus,Postage,4291,"Postage April 17 2460.63  Postage May 17 3000.00",26/05/2017,0000432248,"1,479.50",Revenue,CRITIQOM,131053
South Ribble Council,http://statistics.data.gov.uk/doc/local-authority/30UN,Housing,Cap Grant- Improve Grants,C570,"DFG WORK AT ADDRESS REDACTED, CUSTOMER CONTRIBUTION OF 91.00",17/05/2017,0000432016,"4,809.00",Revenue,Croston Plumbing & Heating Ltd,131545
South Ribble Council,http://statistics.data.gov.uk/doc/local-authority/30UN,Housing,Professional Fees,4513,Legal fees in relation to the development of a grant agreement for commuted sum funding.,10/05/2017,0000431865,"1,599.00",Revenue,DAC BEACHCROFT LLP,131193
South Ribble Council,http://statistics.data.gov.uk/doc/local-authority/30UN,Information Services,Peripherals,4245,Annual purchase order for Disaster Recovery Services for period 01/04/17 - 31/03/18,12/05/2017,0000431859,"2,503.99",Revenue,DAISY IT CONTINUITY and RESILIENCE SERVICES LTD,131708
South Ribble Council,http://statistics.data.gov.uk/doc/local-authority/30UN,Information Services,Peripherals,4245,Annual maintenance on PowerVault TL2000 Tape Library for period 15/05/17 - 14/05/18,03/05/2017,0000431744,533.00,Revenue,Daisy Partner Services Ltd,131494
South Ribble Council,http://statistics.data.gov.uk/doc/local-authority/30UN,Development Enterprise & Comm Mgnt,Other Misc,4851,Provision of Cycle Training May 2017,10/05/2017,0000431804,540.00,Revenue,NAME REDACTED,132006
South Ribble Council,http://statistics.data.gov.uk/doc/local-authority/30UN,Housing,Cap Grant- Improve Grants,C570,"Wet room work at ADDRESS REDACTED, Lostock Hall as per your quote",12/05/2017,0000431956,"3,505.39",Revenue,Deakins Plumbing & Heating Ltd,131446
South Ribble Council,http://statistics.data.gov.uk/doc/local-authority/30UN,Housing,Cap Grant- Improve Grants,C570,Wet room and ramp work at ADDRESS REDACTED as per your quote  5118.27,24/05/2017,0000432151,"5,118.27",Revenue,Deakins Plumbing & Heating Ltd,131446
South Ribble Council,http://statistics.data.gov.uk/doc/local-authority/30UN,Area 2 - Waste Transport/Eastern & Central Teams,Materials General,4040,HOPPER FLOOR - VK09AHJ - JFC 8505 - PD,17/05/2017,0000431566,"1,697.48",Revenue,DENNIS EAGLE LTD,00019774
South Ribble Council,http://statistics.data.gov.uk/doc/local-authority/30UN,Area 2 - Waste Transport/Eastern & Central Teams,Materials General,4040,1 X WINDOW REG - VN10DKL - 8704,26/05/2017,0000432138,279.87,Revenue,DENNIS EAGLE LTD,00019774
South Ribble Council,http://statistics.data.gov.uk/doc/local-authority/30UN,Area 2 - Waste Transport/Eastern & Central Teams,Materials General,4040,"1 SEAT BELT, 2 MUDGUARDS, 6 CLIPS - VK09 AHJ - JFC8520 - AW",26/05/2017,0000432184,313.10,Revenue,DENNIS EAGLE LTD,00019774
South Ribble Council,http://statistics.data.gov.uk/doc/local-authority/30UN,HR & Communications,Professional Fees,4522,DISCLOSURE & BARRING APPLICATIONS,12/05/2017,0000431913,352.00,Revenue,DISCLOSURE & BARRING SERVICE (CRB),00061984
South Ribble Council,http://statistics.data.gov.uk/doc/local-authority/30UN,Area 3 - Parks/Leyland East West,Materials General,4040,PROMASTER 80 RENOVATION  MIX (20kg),24/05/2017,0000432069,"5,103.00",Revenue,DLF TRIFOLIUM LTD,00009632
South Ribble Council,http://statistics.data.gov.uk/doc/local-authority/30UN,Property Services,Energy Costs,2303,17/1/17 to 2/2/17,10/05/2017,0000431837,837.94,Revenue,E.ON,00083441
South Ribble Council,http://statistics.data.gov.uk/doc/local-authority/30UN,Property Services,Energy Costs,2307,CCL,10/05/2017,0000431837,21.71,Revenue,E.ON,00083441
South Ribble Council,http://statistics.data.gov.uk/doc/local-authority/30UN,Property Services,Rep & Maint Premises,2020,Please supply lighting for South Ribble Borough Council Civic Site as per your quotation LQ07111/60606R,31/05/2017,0000432283,"2,153.08",Revenue,Edmundson Electrical Ltd,131392
South Ribble Council,http://statistics.data.gov.uk/doc/local-authority/30UN,Information Services,Peripherals,4260,MAY,12/05/2017,0000431969,"2,296.46",Revenue,EE Ltd,131653
South Ribble Council,http://statistics.data.gov.uk/doc/local-authority/30UN,HR & Communications,Training Expense-Course Fees,1405,FACILITATING SMT/CMT WORKSHOP ON THE AWAY DAY ON 3RD MAY 2017,31/05/2017,0000432365,"1,500.00",Revenue,ELIANNA BUSINESS STRATEGIES LTD,130949
South Ribble Council,http://statistics.data.gov.uk/doc/local-authority/30UN,Area 2 - Waste Transport/Eastern & Central Teams,External Contractors Charges,4570,RESIDUAL WASTE APRIL 2017,17/05/2017,0000431900,"40,257.04",Revenue,FCC Environment Services (UK) Ltd,131612
South Ribble Council,http://statistics.data.gov.uk/doc/local-authority/30UN,Area 2 - Waste Transport/Eastern & Central Teams,External Contractors Charges,4570,DRY REDYCLABLE NON TERRACED APRIL 2017,17/05/2017,0000431900,"41,226.30",Revenue,FCC Environment Services (UK) Ltd,131612
South Ribble Council,http://statistics.data.gov.uk/doc/local-authority/30UN,Area 2 - Waste Transport/Eastern & Central Teams,External Contractors Charges,4570,DRY RECYCLABLE TERRACED APRIL 2017,17/05/2017,0000431900,"1,957.85",Revenue,FCC Environment Services (UK) Ltd,131612
South Ribble Council,http://statistics.data.gov.uk/doc/local-authority/30UN,Area 2 - Waste Transport/Eastern & Central Teams,External Contractors Charges,4570,ORGANIC WASTE NON - TERRACED APRIL 2017,17/05/2017,0000431900,"28,574.63",Revenue,FCC Environment Services (UK) Ltd,131612
South Ribble Council,http://statistics.data.gov.uk/doc/local-authority/30UN,Area 2 - Waste Transport/Eastern & Central Teams,External Contractors Charges,4570,SCHEDULE 2 PROPERTIES APRIL 2017,17/05/2017,0000431900,"1,634.76",Revenue,FCC Environment Services (UK) Ltd,131612
South Ribble Council,http://statistics.data.gov.uk/doc/local-authority/30UN,Area 2 - Waste Transport/Eastern & Central Teams,External Contractors Charges,4570,COMMERCIAL WASTE - APRIL 2017,17/05/2017,0000431900,"6,404.30",Revenue,FCC Environment Services (UK) Ltd,131612
South Ribble Council,http://statistics.data.gov.uk/doc/local-authority/30UN,Area 2 - Waste Transport/Eastern & Central Teams,External Contractors Charges,4570,BULKY WASTE - APRIL 2017,17/05/2017,0000431900,885.34,Revenue,FCC Environment Services (UK) Ltd,131612
South Ribble Council,http://statistics.data.gov.uk/doc/local-authority/30UN,Area 2 - Waste Transport/Eastern & Central Teams,External Contractors Charges,4570,WEEE COLLECTIONS APRIL 2017,17/05/2017,0000431900,331.03,Revenue,FCC Environment Services (UK) Ltd,131612
South Ribble Council,http://statistics.data.gov.uk/doc/local-authority/30UN,Area 2 - Waste Transport/Eastern & Central Teams,External Contractors Charges,4570,CLINICAL WASTE COLLECTIONS APRIL 2017,17/05/2017,0000431900,563.74,Revenue,FCC Environment Services (UK) Ltd,131612
South Ribble Council,http://statistics.data.gov.uk/doc/local-authority/30UN,Area 2 - Waste Transport/Eastern & Central Teams,External Contractors Charges,4570,ADDITIONAL PROPERTIES APRIL 2017,17/05/2017,0000431900,"1,301.95",Revenue,FCC Environment Services (UK) Ltd,131612
South Ribble Council,http://statistics.data.gov.uk/doc/local-authority/30UN,Area 2 - Waste Transport/Eastern & Central Teams,External Contractors Charges,4570,REPLACEMENT BINS APRIL 2017,17/05/2017,0000431900,"5,000.00",Revenue,FCC Environment Services (UK) Ltd,131612
South Ribble Council,http://statistics.data.gov.uk/doc/local-authority/30UN,Area 2 - Waste Transport/Eastern & Central Teams,Balance Sheet,0030,Retention refuse,17/05/2017,0000431900,"-2,568.91",Revenue,FCC Environment Services (UK) Ltd,131612
South Ribble Council,http://statistics.data.gov.uk/doc/local-authority/30UN,Area 2 - Waste Transport/Eastern & Central Teams,Balance Sheet,0030,Retention recycling,17/05/2017,0000431900,"-3,587.94",Revenue,FCC Environment Services (UK) Ltd,131612
South Ribble Council,http://statistics.data.gov.uk/doc/local-authority/30UN,Area 2 - Waste Transport/Eastern & Central Teams,External Contractors Charges,4570,ADDITIONAL CLINICAL WASTE COLLECTION S- APRIL 2017,17/05/2017,0000431901,285.12,Revenue,FCC Environment Services (UK) Ltd,131612
South Ribble Council,http://statistics.data.gov.uk/doc/local-authority/30UN,Area 2 - Waste Transport/Eastern & Central Teams,Balance Sheet,0030,clinical retention,17/05/2017,0000431901,-14.26,Revenue,FCC Environment Services (UK) Ltd,131612
South Ribble Council,http://statistics.data.gov.uk/doc/local-authority/30UN,Area 2 - Waste Transport/Eastern & Central Teams,External Contractors Charges,4570,DELIVERY OF FULL SUITES OF BINS TO NEW PROPERTIES 16/17 181 @ 71.70,17/05/2017,0000432004,"12,977.70",Revenue,FCC Environment Services (UK) Ltd,131612
South Ribble Council,http://statistics.data.gov.uk/doc/local-authority/30UN,HR & Communications,Training Expense-Course Fees,1402,"NAME REDACTED FERRET SOFTWARE TRAINING, BEGINNER, INTERMEDIATE AND ADVANCED 3 DAY COURSE 4TH",05/05/2017,0000431760,320.00,Revenue,Ferret Information Systems Ltd,131107
South Ribble Council,http://statistics.data.gov.uk/doc/local-authority/30UN,Area 2 - Waste Transport/Eastern & Central Teams,External Contractors Charges,4570,ANNUAL LICENCE FEE AND MAINTENANCE OF FLEETCHECK SYSTEM,26/05/2017,0000432232,"2,400.00",Revenue,FLEETCHECK LTD,130457
South Ribble Council,http://statistics.data.gov.uk/doc/local-authority/30UN,Housing,Cap Grant- Improve Grants,C570,DFG works at ADDRESS REDACTED as per your quote of 2501.55.  The grant is 50% of your quote.,19/05/2017,0000432079,"1,123.64",Revenue,FORVIVA GROUP WORKS T/A FOR WORKS,132105
South Ribble Council,http://statistics.data.gov.uk/doc/local-authority/30UN,Development Enterprise & Comm Mgnt,Other Misc,4851,Entertainment (Dance from the Heart) Deposit for Boogie Storm - School Tour 12/06 - 16/06,24/05/2017,0000431157,"1,750.00",Revenue,Fresh Artiste Management Ltd,132211
South Ribble Council,http://statistics.data.gov.uk/doc/local-authority/30UN,Area 3 - Parks/Leyland East West,External Contractors Charges,4570,Slope Stability Assessment ,31/05/2017,0000432252,"5,637.25",Revenue,Geotechnical & Environmental Associates,132200
South Ribble Council,http://statistics.data.gov.uk/doc/local-authority/30UN,Area 1 - Penwortham Western Parishes,Contract Hire & Lease Costs,3212,HIRE OF MECHANICAL ROAD SWEEPER - ON HIRE 27.3.17 FOR 2 WEEKS HIRE (@650.00 PER WEEK),12/05/2017,0000431795,650.00,Revenue,GULLIVERS TRUCK HIRE LTD,130582
South Ribble Council,http://statistics.data.gov.uk/doc/local-authority/30UN,Area 1 - Penwortham Western Parishes,Contract Hire & Lease Costs,3212,HIRE OF MECHANICAL ROAD SWEEPER - ON HIRE 27.3.17 FOR 2 WEEKS HIRE (@650.00 PER WEEK),17/05/2017,0000431806,520.00,Revenue,GULLIVERS TRUCK HIRE LTD,130582
South Ribble Council,http://statistics.data.gov.uk/doc/local-authority/30UN,Neighbourhood Admin & Support,Vehicle Running Costs,3132,15000ltr @ 93.39p per ltr,12/05/2017,0000431904,"13,425.55",Revenue,Hall Fuels trading name of WFL (UK) Ltd,00116758
South Ribble Council,http://statistics.data.gov.uk/doc/local-authority/30UN,Neighbourhood Admin & Support,Vehicle Running Costs,3134,Gas Oil 2500 @ 47.68p per litre. Contract No YPO 618 - delivery 05/05/2017,12/05/2017,0000431923,"1,167.00",Revenue,Hall Fuels trading name of WFL (UK) Ltd,00116758
South Ribble Council,http://statistics.data.gov.uk/doc/local-authority/30UN,Housing,Cap Grant- Improve Grants,C570,DFG works to bathroom at ADDRESS REDACTED - 50% of total cost,17/05/2017,0000432017,"1,075.00",Revenue,Hartwell  Property Services LTD,131998
South Ribble Council,http://statistics.data.gov.uk/doc/local-authority/30UN,Property Services,Rep & Maint Premises,2020,"ADDRESS REDACTED To supply and fit replacement Brazilia F85 wall gas heater complete with flue kit, gas connection",10/05/2017,0000431728,505.00,Revenue,Heating & Cooling Installations Ltd,132138
South Ribble Council,http://statistics.data.gov.uk/doc/local-authority/30UN,Revenues Plus,Stationery,4130,"Council Tax envelopes white self seal C5 15,000",05/05/2017,0000431802,326.25,Revenue,HOUND ENVELOPES,00113366
South Ribble Council,http://statistics.data.gov.uk/doc/local-authority/30UN,HR & Communications,Advertising,4848,PICTURE JOBS FOR -  TRUCK TRAIL LAUNCH BAMBER BRIDGE WAR VETERANS CAF� BAMBER BRIDGE PLAQUES,17/05/2017,0000431912,600.00,Revenue,NAME REDACTED,132041
South Ribble Council,http://statistics.data.gov.uk/doc/local-authority/30UN,HR & Communications,Professional Fees,4510,INVESTIGATION WORK CARRIED OUT FOR IP  UNTIL END OF MARCH 2017,19/05/2017,0000430851,"17,626.90",Revenue,IDEA IMPROVEMENT & DEV AGENCY for LOCAL GOV,00012111
South Ribble Council,http://statistics.data.gov.uk/doc/local-authority/30UN,Information Services,Capital Expenditure,C234,South Ribble Apps Bundle 160517,31/05/2017,0000432331,"9,000.00",Revenue,IDOX PLC,00104485
South Ribble Council,http://statistics.data.gov.uk/doc/local-authority/30UN,Revenues Plus,Professional Fees,4510,"AL53472 - Midge Hall Lane, Midge Hall",03/05/2017,0000431743,570.00,Revenue,Inform CPI Ltd,131666
South Ribble Council,http://statistics.data.gov.uk/doc/local-authority/30UN,Revenues Plus,Professional Fees,4510,"Workshop at Lincluden, Newgate Lane, Whitestake, Preston",19/05/2017,0000432073,"1,350.00",Revenue,Inform CPI Ltd,131666
South Ribble Council,http://statistics.data.gov.uk/doc/local-authority/30UN,Regeneration,Peripherals,4241,AutoCAD New Subscription Single User - co termed to existing 3 Single User licences end date (Jan 2019),17/05/2017,0000431853,"1,921.47",Revenue,INSIGHT UK,00120744
South Ribble Council,http://statistics.data.gov.uk/doc/local-authority/30UN,Regeneration,Other Misc,4851,hire of hiab and driver for truck trail installs,17/05/2017,0000431745,500.00,Revenue,J & J ASHCROFT LTD,00087515
South Ribble Council,http://statistics.data.gov.uk/doc/local-authority/30UN,Revenues Plus,Professional Fees,4525,vat on fees,10/05/2017,0000431489,0.00,Revenue,JACOBS,00049252
South Ribble Council,http://statistics.data.gov.uk/doc/local-authority/30UN,Revenues Plus,Professional Fees,4525,Council Tax Bailiffs fees and arrest warrants,10/05/2017,0000431489,313.00,Revenue,JACOBS,00049252
South Ribble Council,http://statistics.data.gov.uk/doc/local-authority/30UN,Revenues Plus,Professional Fees,4525,vat on fees,17/05/2017,0000431883,0.00,Revenue,JACOBS,00049252
South Ribble Council,http://statistics.data.gov.uk/doc/local-authority/30UN,Revenues Plus,Professional Fees,4525,Council Tax Bailiffs fees and arrest warrants,17/05/2017,0000431883,460.00,Revenue,JACOBS,00049252
South Ribble Council,http://statistics.data.gov.uk/doc/local-authority/30UN,Area 3 - Parks/Leyland East West,Grounds Maint Cntrctrs Chgs,4657,1280no TRUCKPAVE 80 600X400X80PLEASE CALL NAME REDACTED ON 01772 625561 - 1 HR PRIOR TO DELIVERY FOR,24/05/2017,0000432135,"6,720.00",Revenue,JEWSON LTD,130263
South Ribble Council,http://statistics.data.gov.uk/doc/local-authority/30UN,HR & Communications,Agency Fees,1121,WORK CARRIED OUT BY JPLATT FROM 1ST APRIL 2017 UNTIL END OF CONTRACT,24/05/2017,0000432201,"11,963.10",Revenue,Joanne Platt Associates Ltd,132222
South Ribble Council,http://statistics.data.gov.uk/doc/local-authority/30UN,HR & Communications,Recruitment Expenses,1500,CONTRACT RENEWAL 2017/2018,31/05/2017,0000432203,"2,384.00",Revenue,JOBSGOPUBLIC,00040358
South Ribble Council,http://statistics.data.gov.uk/doc/local-authority/30UN,Area 3 - Parks/Leyland East West,Grounds Maint Cntrctrs Chgs,4657,Timber Posts and Rails for Longton Brickcroft.,12/05/2017,0000431856,324.49,Revenue,JOHN HY MAYOR & SONS LTD,00028176
South Ribble Council,http://statistics.data.gov.uk/doc/local-authority/30UN,Planning,Advertising,4841,Press notices for planning applications 2017/18,05/05/2017,0000431710,567.00,Revenue,JOHNSTON PUBLISHING (NORTH WEST),00011345
South Ribble Council,http://statistics.data.gov.uk/doc/local-authority/30UN,Legal,Other Misc,4851,Public Notice in the LEP/www.Preston Today Column Size 23x1 Colour - Black Date 12/05/2017 As per Advert Ref Number,19/05/2017,0000432020,621.00,Revenue,JOHNSTON PUBLISHING (NORTH WEST),00011345
South Ribble Council,http://statistics.data.gov.uk/doc/local-authority/30UN,Legal,Other Misc,4851,Public Notice in the LEP/www.Preston Today Columns 27 x 1 Colour - Black  Date - 12 May 2017  As per Advert Ref Number,24/05/2017,0000432021,729.00,Revenue,JOHNSTON PUBLISHING (NORTH WEST),00011345
South Ribble Council,http://statistics.data.gov.uk/doc/local-authority/30UN,Planning,Advertising,4841,Press notices for planning applications 2017/18,24/05/2017,0000432080,540.00,Revenue,JOHNSTON PUBLISHING (NORTH WEST),00011345
South Ribble Council,http://statistics.data.gov.uk/doc/local-authority/30UN,Area 1 - Penwortham Western Parishes,External Contractors Charges,4570,"BY-PASSES, TRAFFIC MANAGEMENT - W/C 18.4.17",26/05/2017,0000432175,"4,259.00",Revenue,KAYS TRAFFIC MANAGEMENT LTD,00072342
South Ribble Council,http://statistics.data.gov.uk/doc/local-authority/30UN,Area 1 - Penwortham Western Parishes,External Contractors Charges,4570,"BY-PASSES, TRAFFIC MANAGEMENT - W/C 24.4.17",26/05/2017,0000432180,"4,259.00",Revenue,KAYS TRAFFIC MANAGEMENT LTD,00072342
South Ribble Council,http://statistics.data.gov.uk/doc/local-authority/30UN,Area 3 - Parks/Leyland East West,External Contractors Charges,4570,"BY-PASS MOWING (26th, 27th & 28th April 2017)",26/05/2017,0000432181,"2,500.00",Revenue,KAYS TRAFFIC MANAGEMENT LTD,00072342
South Ribble Council,http://statistics.data.gov.uk/doc/local-authority/30UN,Planning,Professional Fees,4510,Penwortham Mill - Advice in connection with expert report relation to housing land supply. meetings and conference with Counsel.,26/05/2017,0000432250,650.00,Revenue,Keppie Massie,131948
South Ribble Council,http://statistics.data.gov.uk/doc/local-authority/30UN,Scrutiny,Training Expense-Course Fees,1405,Meeting of Lancashire football Association HQ for meeting of SMT and Core Managers on Wednesday 3 May 2017 9am 4.30pm,19/05/2017,0000432007,315.00,Revenue,LANCASHIRE FOOTBALL ASSOCIATION LTD,00028066
South Ribble Council,http://statistics.data.gov.uk/doc/local-authority/30UN,Scrutiny,Training Expense-Course Fees,1405,food,19/05/2017,0000432007,300.00,Revenue,LANCASHIRE FOOTBALL ASSOCIATION LTD,00028066
South Ribble Council,http://statistics.data.gov.uk/doc/local-authority/30UN,Scrutiny,Training Expense-Course Fees,1405,drinks,19/05/2017,0000432007,100.00,Revenue,LANCASHIRE FOOTBALL ASSOCIATION LTD,00028066
South Ribble Council,http://statistics.data.gov.uk/doc/local-authority/30UN,Housing,Cap Grant- Improve Grants,C570,Supply and install stair lift at ADDRESS REDACTED as per your quote of - 2899.00,10/05/2017,0000431884,"2,899.00",Revenue,LANCS COUNTY COUNCIL,00041645
South Ribble Council,http://statistics.data.gov.uk/doc/local-authority/30UN,Housing,Cap Grant- Improve Grants,C570,SUPPLY AND INSTALL STAIRLIFT AT ADDRESS REDACTED AS PER YOUR QUOTE OF -810.00,10/05/2017,0000431885,810.00,Revenue,LANCS COUNTY COUNCIL,00041645
South Ribble Council,http://statistics.data.gov.uk/doc/local-authority/30UN,Area 1 - Penwortham Western Parishes,Professional Fees,4516,BACK OFFICE PROCESSING OCTOBER - DECEMBER 2016 (ESTIMATED),12/05/2017,0000431930,"1,006.75",Revenue,LANCS COUNTY COUNCIL,00041645
South Ribble Council,http://statistics.data.gov.uk/doc/local-authority/30UN,Area 1 - Penwortham Western Parishes,Professional Fees,4516,TEC RECHARGES OCTOBER - DECEMBER 2016 (ESTIMATED),12/05/2017,0000431930,150.00,Revenue,LANCS COUNTY COUNCIL,00041645
South Ribble Council,http://statistics.data.gov.uk/doc/local-authority/30UN,Shared Financial Services,Contributions,4730,"New Homes Bonus Quarter 1   241,430  CIL ref HD33  54,750",24/05/2017,0000432204,"296,180.00",Revenue,LANCS COUNTY COUNCIL,00041645
South Ribble Council,http://statistics.data.gov.uk/doc/local-authority/30UN,Housing,Cap Grant- Improve Grants,C570,SUPPLY AND INSTALL HOISTING AT ADDRESS REDACTED AS PER YOUR QUOTE OF - 1549.00,31/05/2017,0000432301,"1,549.00",Revenue,LANCS COUNTY COUNCIL,00041645
South Ribble Council,http://statistics.data.gov.uk/doc/local-authority/30UN,Housing,Cap Grant- Improve Grants,C570,Supply and install stair lift at ADDRESS REDACTED as per your quote of - 3376.00,31/05/2017,0000432302,"3,101.00",Revenue,LANCS COUNTY COUNCIL,00041645
South Ribble Council,http://statistics.data.gov.uk/doc/local-authority/30UN,Housing,Cap Grant- Improve Grants,C570,Supply and install stair lift at ADDRESS REDACTED as per quote of 2881.00,31/05/2017,0000432303,"2,881.00",Revenue,LANCS COUNTY COUNCIL,00041645
South Ribble Council,http://statistics.data.gov.uk/doc/local-authority/30UN,Housing,Cap Grant- Improve Grants,C570,SUPPLY AND INSTALL STAIRLIFT ATADDRESS REDACTED AS PER YOUR QUOTE OF -6084.00,31/05/2017,0000432304,"6,034.00",Revenue,LANCS COUNTY COUNCIL,00041645
South Ribble Council,http://statistics.data.gov.uk/doc/local-authority/30UN,Housing,Cap Grant- Improve Grants,C570,Supply and install stairlift at ADDRESS REDACTED as per your quote of - 2729.00,31/05/2017,0000432305,"2,729.00",Revenue,LANCS COUNTY COUNCIL,00041645
South Ribble Council,http://statistics.data.gov.uk/doc/local-authority/30UN,Scrutiny,Subs to Statutory Bodies,4720,Group Membership for Lawyers in Local Government - 1/4/2017 - 31/3/2018,05/05/2017,0000431779,300.00,Revenue,LAWYERS IN LOCAL GOVERMENT,130885
South Ribble Council,http://statistics.data.gov.uk/doc/local-authority/30UN,Neighbourhood Admin & Support,Operational Furniture & Equip,4010,PADLOCKS  - SQUIRE 660 TO PASS KEY 10 -,17/05/2017,0000431998,354.96,Revenue,M A C BUILDING PRODUCTS LTD,00051059
South Ribble Council,http://statistics.data.gov.uk/doc/local-authority/30UN,Housing,Cap Grant- Improve Grants,C570,Additional work to ramp required.,17/05/2017,0000431807,400.00,Revenue,M J PARK,00087434
South Ribble Council,http://statistics.data.gov.uk/doc/local-authority/30UN,Housing,Cap Grant- Improve Grants,C570,DFG works to property as per quote at ADDRESS REDACTED Cost of work - 3740.00,12/05/2017,0000431959,"3,740.00",Revenue,M J PARK,00087434
South Ribble Council,http://statistics.data.gov.uk/doc/local-authority/30UN,Housing,Cap Grant- Improve Grants,C570,DFG works to property as per quote at ADDRESS REDACTED Cost of Work 4195.00,31/05/2017,0000432299,"4,195.00",Revenue,M J PARK,00087434
South Ribble Council,http://statistics.data.gov.uk/doc/local-authority/30UN,Area 2 - Waste Transport/Eastern & Central Teams,External Contractors Charges,4570,Spec repair - VK09AHJ - JFC8505 - ,17/05/2017,0000431895,"1,812.52",Revenue,M WILSON COMMERCIALS LIMITED,130533
South Ribble Council,http://statistics.data.gov.uk/doc/local-authority/30UN,Area 2 - Waste Transport/Eastern & Central Teams,External Contractors Charges,4570,SPEC REPAIR PJ62UCL - JFC 8696,19/05/2017,0000432067,472.28,Revenue,M WILSON COMMERCIALS LIMITED,130533
South Ribble Council,http://statistics.data.gov.uk/doc/local-authority/30UN,Regeneration,Operational Furniture & Equip,4010,Clarke PTE550 - 2T Economy Pallet Truck 279.00 ex. VAT 334.80 inc. VAT,10/05/2017,0000431737,279.00,Revenue,MACHINE MART LTD,00044668
South Ribble Council,http://statistics.data.gov.uk/doc/local-authority/30UN,Housing,Cap Grant- Improve Grants,C570,DFG Works to bathroom at ADDRESS REDACTED  - 50% of total cost,12/05/2017,0000431960,"1,360.00",Revenue,MAHONEY CONTRACTORS LTD,131271
South Ribble Council,http://statistics.data.gov.uk/doc/local-authority/30UN,Neighbourhood Admin & Support,Materials General,4040,ADDRESS REDACTED,12/05/2017,0000431924,43.00,Revenue,Main Street Signs Ltd,131922
South Ribble Council,http://statistics.data.gov.uk/doc/local-authority/30UN,Neighbourhood Admin & Support,Materials General,4040,ADDRESS REDACTED,12/05/2017,0000431924,14.00,Revenue,Main Street Signs Ltd,131922
South Ribble Council,http://statistics.data.gov.uk/doc/local-authority/30UN,Neighbourhood Admin & Support,Materials General,4040,ADDRESS REDACTED,12/05/2017,0000431924,88.00,Revenue,Main Street Signs Ltd,131922
South Ribble Council,http://statistics.data.gov.uk/doc/local-authority/30UN,Neighbourhood Admin & Support,Materials General,4040,ADDRESS REDACTED,12/05/2017,0000431924,40.00,Revenue,Main Street Signs Ltd,131922
South Ribble Council,http://statistics.data.gov.uk/doc/local-authority/30UN,Neighbourhood Admin & Support,Materials General,4040,24 - 30,12/05/2017,0000431924,70.00,Revenue,Main Street Signs Ltd,131922
South Ribble Council,http://statistics.data.gov.uk/doc/local-authority/30UN,Neighbourhood Admin & Support,Materials General,4040,Nov-23,12/05/2017,0000431924,35.00,Revenue,Main Street Signs Ltd,131922
South Ribble Council,http://statistics.data.gov.uk/doc/local-authority/30UN,Neighbourhood Admin & Support,Materials General,4040,Nov-23,12/05/2017,0000431924,5.00,Revenue,Main Street Signs Ltd,131922
South Ribble Council,http://statistics.data.gov.uk/doc/local-authority/30UN,Neighbourhood Admin & Support,Materials General,4040,ADDRESS REDACTED,12/05/2017,0000431924,94.00,Revenue,Main Street Signs Ltd,131922
South Ribble Council,http://statistics.data.gov.uk/doc/local-authority/30UN,Neighbourhood Admin & Support,Materials General,4040,ADDRESS REDACTED,12/05/2017,0000431924,53.00,Revenue,Main Street Signs Ltd,131922
South Ribble Council,http://statistics.data.gov.uk/doc/local-authority/30UN,Neighbourhood Admin & Support,Materials General,4040,ADDRESS REDACTED,12/05/2017,0000431924,40.00,Revenue,Main Street Signs Ltd,131922
South Ribble Council,http://statistics.data.gov.uk/doc/local-authority/30UN,Neighbourhood Admin & Support,Materials General,4040,ADDRESS REDACTED,12/05/2017,0000431924,41.00,Revenue,Main Street Signs Ltd,131922
South Ribble Council,http://statistics.data.gov.uk/doc/local-authority/30UN,Neighbourhood Admin & Support,Materials General,4040,ADDRESS REDACTED,12/05/2017,0000431924,19.00,Revenue,Main Street Signs Ltd,131922
South Ribble Council,http://statistics.data.gov.uk/doc/local-authority/30UN,Neighbourhood Admin & Support,Materials General,4040,ADDRESS REDACTED,12/05/2017,0000431924,20.00,Revenue,Main Street Signs Ltd,131922
South Ribble Council,http://statistics.data.gov.uk/doc/local-authority/30UN,Neighbourhood Admin & Support,Materials General,4040,ADDRESS REDACTED,12/05/2017,0000431924,44.00,Revenue,Main Street Signs Ltd,131922
South Ribble Council,http://statistics.data.gov.uk/doc/local-authority/30UN,Neighbourhood Admin & Support,Materials General,4040,ADDRESS REDACTED,12/05/2017,0000431924,82.00,Revenue,Main Street Signs Ltd,131922
South Ribble Council,http://statistics.data.gov.uk/doc/local-authority/30UN,Neighbourhood Admin & Support,Materials General,4040,ADDRESS REDACTED,12/05/2017,0000431924,43.00,Revenue,Main Street Signs Ltd,131922
South Ribble Council,http://statistics.data.gov.uk/doc/local-authority/30UN,Neighbourhood Admin & Support,Materials General,4040,ADDRESS REDACTED,12/05/2017,0000431924,43.00,Revenue,Main Street Signs Ltd,131922
South Ribble Council,http://statistics.data.gov.uk/doc/local-authority/30UN,Neighbourhood Admin & Support,Materials General,4040,ADDRESS REDACTED,12/05/2017,0000431924,49.00,Revenue,Main Street Signs Ltd,131922
South Ribble Council,http://statistics.data.gov.uk/doc/local-authority/30UN,Neighbourhood Admin & Support,Materials General,4040,carriage,12/05/2017,0000431924,52.00,Revenue,Main Street Signs Ltd,131922
South Ribble Council,http://statistics.data.gov.uk/doc/local-authority/30UN,Property Services,Rep & Maint Premises,2020,"ADDRESS REDACTED  Roof  Area - To replace all rooflight sheets (8 no full,  4 no half lights) to main roof of  building including ",26/05/2017,0000432127,"1,108.00",Revenue,MAINCOAT LTD,00099244
South Ribble Council,http://statistics.data.gov.uk/doc/local-authority/30UN,Property Services,Rep & Maint Premises,2020,materials,26/05/2017,0000432127,"1,662.00",Revenue,MAINCOAT LTD,00099244
South Ribble Council,http://statistics.data.gov.uk/doc/local-authority/30UN,Revenues Plus,Professional Fees,4510,Professional Fees,26/05/2017,0000432235,"2,450.00",Revenue,NAME REDACTED,132229
South Ribble Council,http://statistics.data.gov.uk/doc/local-authority/30UN,Area 2 - Waste Transport/Eastern & Central Teams,External Contractors Charges,4570,SPEC REPAIR - JFC8417 - PL08MLK - ,05/05/2017,0000431709,277.94,Revenue,MERLIN DIESEL SYSTEM LTD,130925
South Ribble Council,http://statistics.data.gov.uk/doc/local-authority/30UN,Area 2 - Waste Transport/Eastern & Central Teams,External Contractors Charges,4570,1 spec repair YP11 CFM JFC8538,17/05/2017,0000431997,252.00,Revenue,MITCHELL POWERSYTEMS,00077282
South Ribble Council,http://statistics.data.gov.uk/doc/local-authority/30UN,Revenues Plus,Agency Fees,1121,Agency Staff - April 2017,03/05/2017,0000431676,901.51,Revenue,MORGAN HUNT PUBLIC SECTOR LTD,00120401
South Ribble Council,http://statistics.data.gov.uk/doc/local-authority/30UN,Revenues Plus,Agency Fees,1121,Agency Staff - April 2017,10/05/2017,0000431866,901.25,Revenue,MORGAN HUNT PUBLIC SECTOR LTD,00120401
South Ribble Council,http://statistics.data.gov.uk/doc/local-authority/30UN,Revenues Plus,Agency Fees,1121,Agency Staff - May 2017,24/05/2017,0000432098,952.75,Revenue,MORGAN HUNT PUBLIC SECTOR LTD,00120401
South Ribble Council,http://statistics.data.gov.uk/doc/local-authority/30UN,Revenues Plus,Agency Fees,1121,Agency Staff - May 2017,24/05/2017,0000432105,900.99,Revenue,MORGAN HUNT PUBLIC SECTOR LTD,00120401
South Ribble Council,http://statistics.data.gov.uk/doc/local-authority/30UN,Revenues Plus,Agency Fees,1121,Agency Staff - May 2017,26/05/2017,0000432249,952.49,Revenue,MORGAN HUNT PUBLIC SECTOR LTD,00120401
South Ribble Council,http://statistics.data.gov.uk/doc/local-authority/30UN,Area 1 - Penwortham Western Parishes,Professional Fees,4521,PROVISION OF STRAY DOG SERVICE - TO COVER APRIL 2017,12/05/2017,0000431825,381.68,Revenue,MORNINGSIDE KENNELS,00067755
South Ribble Council,http://statistics.data.gov.uk/doc/local-authority/30UN,Homelessness,Professional Fees,4513,Instructions to Counsel ,17/05/2017,0000432043,700.00,Revenue,NAME REDACTED,132049
South Ribble Council,http://statistics.data.gov.uk/doc/local-authority/30UN,Scrutiny,Consultancy Fees,4541,"7D4DT - Dell Latitude 15 5000 E5570 39.6 cm (15.6``) LCD Notebook - Intel Core i5 (6th Gen) i5-6300UDual-core (2 core) 2.40",19/05/2017,0000431814,590.80,Revenue,MYPREMIER LTD,130091
South Ribble Council,http://statistics.data.gov.uk/doc/local-authority/30UN,Area 2 - Waste Transport/Eastern & Central Teams,External Contractors Charges,4570,STEAM CLEAN - JFC8376 - PJ62UCL - ,05/05/2017,0000431758,65.00,Revenue,NAYLORS TRANSPORT (LEYLAND) ltd,00114828
South Ribble Council,http://statistics.data.gov.uk/doc/local-authority/30UN,Area 2 - Waste Transport/Eastern & Central Teams,External Contractors Charges,4570,STEAM CLEAN - JFC8377 - VO65KRF - ,05/05/2017,0000431758,65.00,Revenue,NAYLORS TRANSPORT (LEYLAND) ltd,00114828
South Ribble Council,http://statistics.data.gov.uk/doc/local-authority/30UN,Area 2 - Waste Transport/Eastern & Central Teams,External Contractors Charges,4570,STEAM CLEAN - JFC8378 - VO65KPY - ,05/05/2017,0000431758,65.00,Revenue,NAYLORS TRANSPORT (LEYLAND) ltd,00114828
South Ribble Council,http://statistics.data.gov.uk/doc/local-authority/30UN,Area 2 - Waste Transport/Eastern & Central Teams,External Contractors Charges,4570,STEAM CLEAN - JFC8379 - VO65KPX - ,05/05/2017,0000431758,65.00,Revenue,NAYLORS TRANSPORT (LEYLAND) ltd,00114828
South Ribble Council,http://statistics.data.gov.uk/doc/local-authority/30UN,Area 2 - Waste Transport/Eastern & Central Teams,External Contractors Charges,4570,STEAM CLEAN - JFC8380 - VN10DKL - ,05/05/2017,0000431758,65.00,Revenue,NAYLORS TRANSPORT (LEYLAND) ltd,00114828
South Ribble Council,http://statistics.data.gov.uk/doc/local-authority/30UN,Area 2 - Waste Transport/Eastern & Central Teams,External Contractors Charges,4570,STEAM CLEAN - JFC8384 - PJ62UCG - ,17/05/2017,0000431894,65.00,Revenue,NAYLORS TRANSPORT (LEYLAND) ltd,00114828
South Ribble Council,http://statistics.data.gov.uk/doc/local-authority/30UN,Area 2 - Waste Transport/Eastern & Central Teams,External Contractors Charges,4570,STEAM CLEAN - JFC8381 - VK09AHJ - ,17/05/2017,0000431894,65.00,Revenue,NAYLORS TRANSPORT (LEYLAND) ltd,00114828
South Ribble Council,http://statistics.data.gov.uk/doc/local-authority/30UN,Area 2 - Waste Transport/Eastern & Central Teams,External Contractors Charges,4570,STEAM CLEAN - JFC8382 - VO65KPZ - ,17/05/2017,0000431894,65.00,Revenue,NAYLORS TRANSPORT (LEYLAND) ltd,00114828
South Ribble Council,http://statistics.data.gov.uk/doc/local-authority/30UN,Area 2 - Waste Transport/Eastern & Central Teams,External Contractors Charges,4570,STEAM CLEAN - JFC8383 - PJ62UCM - ,17/05/2017,0000431894,65.00,Revenue,NAYLORS TRANSPORT (LEYLAND) ltd,00114828
South Ribble Council,http://statistics.data.gov.uk/doc/local-authority/30UN,Area 2 - Waste Transport/Eastern & Central Teams,External Contractors Charges,4570,STEAM CLEAN - JFC8385 - VO65KRE - ,17/05/2017,0000431894,65.00,Revenue,NAYLORS TRANSPORT (LEYLAND) ltd,00114828
South Ribble Council,http://statistics.data.gov.uk/doc/local-authority/30UN,Area 2 - Waste Transport/Eastern & Central Teams,External Contractors Charges,4570,STEAM CLEAN - JFC8386 - NX58FJZ - ,17/05/2017,0000431894,65.00,Revenue,NAYLORS TRANSPORT (LEYLAND) ltd,00114828
South Ribble Council,http://statistics.data.gov.uk/doc/local-authority/30UN,Property Services,Client Internal Charges,4590,2017 / 2018 fees for the front end loader weekly exchange at Leyland Market,12/05/2017,0000431926,386.12,Revenue,NEALES WASTE MANAGEMENT,130129
South Ribble Council,http://statistics.data.gov.uk/doc/local-authority/30UN,Democratic Services,Other Misc,4421,Use of the venue for the Lancashire County Council Elections on Thursday 4 May 2017.  Access required from approx. 6.15am,12/05/2017,0000431922,272.00,Revenue,NEW LONGTON VILLAGE HALL,00080088
South Ribble Council,http://statistics.data.gov.uk/doc/local-authority/30UN,Development Enterprise & Comm Mgnt,Other Misc,485K,"CMS Licence - 1,200 Web Hosting - 600",05/05/2017,0000431785,"1,800.00",Revenue,NEW MIND INTERNET CONSULTANCY LTD,00083328
South Ribble Council,http://statistics.data.gov.uk/doc/local-authority/30UN,Homelessness,Professional Fees,4513,ADDRESS REDACTED  Legal fees,17/05/2017,0000431980,553.56,Revenue,NEW PROGRESS HOUSING ASSOC ref:DNSOU001,00030135
South Ribble Council,http://statistics.data.gov.uk/doc/local-authority/30UN,Area 2 - Waste Transport/Eastern & Central Teams,Training Expense-Course Fees,1403,HGV TRANING COURSE,10/05/2017,0000431800,960.00,Revenue,North Manchester HGV,131441
South Ribble Council,http://statistics.data.gov.uk/doc/local-authority/30UN,Area 2 - Waste Transport/Eastern & Central Teams,Training Expense-Course Fees,1403,test fee,10/05/2017,0000431800,120.00,Revenue,North Manchester HGV,131441
South Ribble Council,http://statistics.data.gov.uk/doc/local-authority/30UN,Scrutiny,Subs to Statutory Bodies,4720,North West Employers Organisation Membership Fee 2017/2018,05/05/2017,0000431773,"4,195.05",Revenue,NORTH WEST EMPLOYERS,00029829
South Ribble Council,http://statistics.data.gov.uk/doc/local-authority/30UN,Housing,Subs to Statutory Bodies,4720,Subscription to Northern Housing Consortium,10/05/2017,0000431683,885.00,Revenue,NORTHERN HOUSING CONSORTIUM,00046747
South Ribble Council,http://statistics.data.gov.uk/doc/local-authority/30UN,Neighbourhood Admin & Support,Materials General,4040,4 ROW CHANNEL BRUSH - C/W 4 NUTS/BOLTS - 835/66,10/05/2017,0000431684,137.09,Revenue,NORTHERN MUNICIPAL SPARES LTD,00117061
South Ribble Council,http://statistics.data.gov.uk/doc/local-authority/30UN,Neighbourhood Admin & Support,Materials General,4040,SCHMIDT MINI SWEEPER BRUSHES (SWINGO) - 71107/1,10/05/2017,0000431684,370.40,Revenue,NORTHERN MUNICIPAL SPARES LTD,00117061
South Ribble Council,http://statistics.data.gov.uk/doc/local-authority/30UN,Area 1 - Penwortham Western Parishes,Professional Fees,4514,DEPLOYMENT OF OFFICERS APRIL 2017,12/05/2017,0000431780,"1,733.69",Revenue,NSL LTD,00116868
South Ribble Council,http://statistics.data.gov.uk/doc/local-authority/30UN,Area 1 - Penwortham Western Parishes,Other Misc,4855,CASH COLLECTION & RING-GO CHARGES APRIL 2017,12/05/2017,0000431780,297.70,Revenue,NSL LTD,00116868
South Ribble Council,http://statistics.data.gov.uk/doc/local-authority/30UN,Information Services,Capital Expenditure,C234,As quotation provided via The Chest - Project ID ``DN249414``,12/05/2017,0000431751,"72,000.95",Revenue,NVIRON LTD,00028781
South Ribble Council,http://statistics.data.gov.uk/doc/local-authority/30UN,Information Services,Peripherals,4247,Annual purchase order for 1yr SystemCare Support Service for period 01/04/17 - 31/03/18,19/05/2017,0000432111,"5,506.00",Revenue,NVIRON LTD,00028781
South Ribble Council,http://statistics.data.gov.uk/doc/local-authority/30UN,Development Enterprise & Comm Mgnt,Other Misc,4851,"A5 Flyers 10,000 x Double Sided full colour gloss paper on a 130gsm",05/05/2017,0000431730,274.00,Revenue,Optimum Signs Ltd,132239
South Ribble Council,http://statistics.data.gov.uk/doc/local-authority/30UN,Development Enterprise & Comm Mgnt,Other Misc,4851,"16 page A4 Colouring Book 1,000 x Full colour outer with black and white inners",05/05/2017,0000431730,488.00,Revenue,Optimum Signs Ltd,132239
South Ribble Council,http://statistics.data.gov.uk/doc/local-authority/30UN,Development Enterprise & Comm Mgnt,Other Misc,4851,A4 Posters  200 x Full colour single sided,05/05/2017,0000431730,60.00,Revenue,Optimum Signs Ltd,132239
South Ribble Council,http://statistics.data.gov.uk/doc/local-authority/30UN,Development Enterprise & Comm Mgnt,Other Misc,4851,"A3 folded maps to a 10pp DL full colour on a 130gsm gloss 10,000 x Double sided",05/05/2017,0000431730,"1,200.00",Revenue,Optimum Signs Ltd,132239
South Ribble Council,http://statistics.data.gov.uk/doc/local-authority/30UN,Development Enterprise & Comm Mgnt,Advertising,4842,"Production of 7 Panels at 230 per panel NAME REDACTED to provide text and illustrations	 New Price 230 per panel",03/05/2017,0000430987,"2,070.00",Revenue,OXFORD ARCHAEOLOGY NORTH,00118060
South Ribble Council,http://statistics.data.gov.uk/doc/local-authority/30UN,Democratic Services,Capital Expenditure,C234,20 No V1 Polling Booths. (this includes delivery costs of 80).,03/05/2017,0000431619,"5,540.00",Revenue,PAKFLATT (UK) LTD,00114255
South Ribble Council,http://statistics.data.gov.uk/doc/local-authority/30UN,Area 1 - Penwortham Western Parishes,Materials General,4040,1000 RESIDENTS PARKING PERMITS AS PER YOUR QUOTATION,05/05/2017,0000431641,900.00,Revenue,PARKING SHOP LTD,00084547
South Ribble Council,http://statistics.data.gov.uk/doc/local-authority/30UN,Democratic Services,Other Expenses,463A,Please provide a buffet for Wednesday 17 May as discussed with NAME REDACTED for service about 7 pm.,24/05/2017,0000432106,960.00,Revenue,Penningtons Catering Ltd,131684
South Ribble Council,http://statistics.data.gov.uk/doc/local-authority/30UN,Property Services,Licence Fees,4883,2017 / 2018 Music Licence fee for Leyland Market,24/05/2017,0000432160,540.40,Revenue,PERFORMING RIGHT SOCIETY LTD,00031260
South Ribble Council,http://statistics.data.gov.uk/doc/local-authority/30UN,Information Services,Peripherals,4244,"10 x BT Converse 2200 Black corded telephones @ 39.00 each, as per quote",31/05/2017,0000432300,390.00,Revenue,PHILLIPS BUSINESS SOLUTIONS,00032214
South Ribble Council,http://statistics.data.gov.uk/doc/local-authority/30UN,Information Services,Stationery,4133,"100,000 sheets Evolution Everyday A4 80gm",17/05/2017,0000431961,454.00,Revenue,PREMIER PAPER GROUP LTD,00022606
South Ribble Council,http://statistics.data.gov.uk/doc/local-authority/30UN,Area 2 - Waste Transport/Eastern & Central Teams,Materials General,4040,TYRE REPAIRS - TR172 - GA,10/05/2017,0000431755,"1,035.05",Revenue,PRESTON TYRE SPECIALISTS,00109516
South Ribble Council,http://statistics.data.gov.uk/doc/local-authority/30UN,Democratic Services,Other Misc,4422,"83,172  South Ribble Parliamentary Poll Card Postage @ 0.274 each",10/05/2017,0000431893,"22,789.13",Revenue,PRINT IMAGE FACILITIES LLP,130734
South Ribble Council,http://statistics.data.gov.uk/doc/local-authority/30UN,Democratic Services,Other Misc,4421,COUNTY CORRESPONDING NUMBER LISTS,03/05/2017,0000431665,964.00,Revenue,PRINT IMAGE NETWORK LTD,00089199
South Ribble Council,http://statistics.data.gov.uk/doc/local-authority/30UN,Democratic Services,Other Misc,4421,130 SOUTH RIBBLE COUNTY LARGE FORMAT BALLOT PAPERS,10/05/2017,0000431810,457.00,Revenue,PRINT IMAGE NETWORK LTD,00089199
South Ribble Council,http://statistics.data.gov.uk/doc/local-authority/30UN,Democratic Services,Other Misc,4422,"20,300 COUNTY VOTER-PEEL CONNECT POSTAL VOTE PACKS",12/05/2017,0000431888,"13,596.47",Revenue,PRINT IMAGE NETWORK LTD,00089199
South Ribble Council,http://statistics.data.gov.uk/doc/local-authority/30UN,Democratic Services,Other Misc,4421,725 COUNTY BALLOT BOOKS,12/05/2017,0000431920,"6,157.49",Revenue,PRINT IMAGE NETWORK LTD,00089199
South Ribble Council,http://statistics.data.gov.uk/doc/local-authority/30UN,Homelessness,Contributions,4730,"Rent in advance and Bond, Bond 550 RIA 550",10/05/2017,0000431854,"1,100.00",Revenue,Property Factor (NW) LTD,132249
South Ribble Council,http://statistics.data.gov.uk/doc/local-authority/30UN,Development Enterprise & Comm Mgnt,Other Misc,4851,Sports Coaching on the Active Schools Primary Schools Coaching Programme,26/05/2017,0000432224,400.00,Revenue,NAME REDACTED,132085
South Ribble Council,http://statistics.data.gov.uk/doc/local-authority/30UN,Area 3 - Parks/Leyland East West,Contract Hire & Lease Costs,3212,HIRE OF 3 TON EXCAVATOR AND 6 TON DUMPER.  ON HIRE TUESDAY 11TH APRIL FOR 2 DAYS HIRE TO DELIVERED,17/05/2017,0000432040,528.00,Revenue,Readyplant Limited,131535
South Ribble Council,http://statistics.data.gov.uk/doc/local-authority/30UN,Area 3 - Parks/Leyland East West,Contract Hire & Lease Costs,3212,fuel,17/05/2017,0000432040,31.50,Revenue,Readyplant Limited,131535
South Ribble Council,http://statistics.data.gov.uk/doc/local-authority/30UN,Development Enterprise & Comm Mgnt,Other Misc,4851,Leyland Festival � water supply To fit a stand pipe and water meter at the rear of the football pavilion. To construct a manhole ,05/05/2017,0000431747,240.00,Revenue,RED ROSE BUILDING MAINTENANCE,00085410
South Ribble Council,http://statistics.data.gov.uk/doc/local-authority/30UN,Development Enterprise & Comm Mgnt,Other Misc,4851,materials,05/05/2017,0000431747,360.00,Revenue,RED ROSE BUILDING MAINTENANCE,00085410
South Ribble Council,http://statistics.data.gov.uk/doc/local-authority/30UN,Property Services,Rep & Maint Premises,2020,Worden Park Kiosk - To install a road gulley  towards the front of the concrete plinth. To cut out section of  the concrete install,10/05/2017,0000431843,240.00,Revenue,RED ROSE BUILDING MAINTENANCE,00085410
South Ribble Council,http://statistics.data.gov.uk/doc/local-authority/30UN,Property Services,Rep & Maint Premises,2020,materials,10/05/2017,0000431843,260.00,Revenue,RED ROSE BUILDING MAINTENANCE,00085410
South Ribble Council,http://statistics.data.gov.uk/doc/local-authority/30UN,Property Services,Other Misc,4421,ADDRESS REDACTED Setting up Polling Station ( 5th May 2017) to attend site 07.30,12/05/2017,0000431919,505.00,Revenue,RED ROSE BUILDING MAINTENANCE,00085410
South Ribble Council,http://statistics.data.gov.uk/doc/local-authority/30UN,Homelessness,Contractors Charges 5,5311,DE placement 31.3.2017 x 5 weeks to 4.5.2017 at agreed rate of 130/week under full homelessness duty,05/05/2017,0000431560,650.00,Revenue,REDDY & CO,00108177
South Ribble Council,http://statistics.data.gov.uk/doc/local-authority/30UN,Scrutiny,Professional Fees,4510,Specialist intensive support to the Resettlement Programme as per the service level agreement between the Council ,05/05/2017,0000431520,"27,446.75",Revenue,REFUGEE ACTION,132107
South Ribble Council,http://statistics.data.gov.uk/doc/local-authority/30UN,Area 2 - Waste Transport/Eastern & Central Teams,Materials General,4040,TCM UNIT - YP11CFM - JFC8538,12/05/2017,0000431937,889.29,Revenue,RIBBLESDALE AUTO ELECTRICS 1992 LTD,00033129
South Ribble Council,http://statistics.data.gov.uk/doc/local-authority/30UN,Information Services,Lease Rental Charges,4036,Lease Rental Charges,24/05/2017,0000432142,"1,492.80",Revenue,RICOH (UK) LTD,00082976
South Ribble Council,http://statistics.data.gov.uk/doc/local-authority/30UN,Information Services,Lease Rental Charges,4036,Lease Rental Charges,24/05/2017,0000432143,"4,638.79",Revenue,RICOH (UK) LTD,00082976
South Ribble Council,http://statistics.data.gov.uk/doc/local-authority/30UN,Information Services,Lease Rental Charges,4036,Lease Rental Charges,26/05/2017,0000432231,"6,687.76",Revenue,RICOH (UK) LTD,00082976
South Ribble Council,http://statistics.data.gov.uk/doc/local-authority/30UN,Area 1 - Penwortham Western Parishes,Materials General,4040,30 X 5 LTRS TRUSTEE AMENITY,12/05/2017,0000431749,810.00,Revenue,RIGBY TAYLOR LTD,00033145
South Ribble Council,http://statistics.data.gov.uk/doc/local-authority/30UN,Democratic Services,Other Misc,4422,Misc,19/05/2017,0000431725,14.70,Revenue,ROYAL MAIL GROUP PLC,00033543
South Ribble Council,http://statistics.data.gov.uk/doc/local-authority/30UN,Democratic Services,Other Misc,4422,Misc,19/05/2017,0000431725,6.51,Revenue,ROYAL MAIL GROUP PLC,00033543
South Ribble Council,http://statistics.data.gov.uk/doc/local-authority/30UN,Democratic Services,Other Misc,4422,Misc,19/05/2017,0000431725,"7,320.18",Revenue,ROYAL MAIL GROUP PLC,00033543
South Ribble Council,http://statistics.data.gov.uk/doc/local-authority/30UN,Democratic Services,Other Misc,4422,Misc,19/05/2017,0000431736,"1,932.76",Revenue,ROYAL MAIL GROUP PLC,00033543
South Ribble Council,http://statistics.data.gov.uk/doc/local-authority/30UN,Democratic Services,Other Misc,4422,Misc,19/05/2017,0000431836,"2,032.75",Revenue,ROYAL MAIL GROUP PLC,00033543
South Ribble Council,http://statistics.data.gov.uk/doc/local-authority/30UN,Property Services,Energy Costs,2304,21/12/16 to 28/3/17,10/05/2017,0000431656,"1,527.82",Revenue,SCOTTISH HYDRO ELECTRIC,130051
South Ribble Council,http://statistics.data.gov.uk/doc/local-authority/30UN,Property Services,Energy Costs,2307,CCL,10/05/2017,0000431656,105.81,Revenue,SCOTTISH HYDRO ELECTRIC,130051
South Ribble Council,http://statistics.data.gov.uk/doc/local-authority/30UN,Property Services,Energy Costs,2304,8/2/17 to 7/3/17,10/05/2017,0000431657,"1,575.06",Revenue,SCOTTISH HYDRO ELECTRIC,130051
South Ribble Council,http://statistics.data.gov.uk/doc/local-authority/30UN,Property Services,Energy Costs,2307,CCL,10/05/2017,0000431657,106.68,Revenue,SCOTTISH HYDRO ELECTRIC,130051
South Ribble Council,http://statistics.data.gov.uk/doc/local-authority/30UN,Property Services,Energy Costs,2304,8/3/17 to 3/4/17,10/05/2017,0000431658,"1,276.99",Revenue,SCOTTISH HYDRO ELECTRIC,130051
South Ribble Council,http://statistics.data.gov.uk/doc/local-authority/30UN,Property Services,Energy Costs,2307,CCL,10/05/2017,0000431658,69.79,Revenue,SCOTTISH HYDRO ELECTRIC,130051
South Ribble Council,http://statistics.data.gov.uk/doc/local-authority/30UN,Property Services,Energy Costs,2303,11/10/16 to 7/3/17,12/05/2017,0000431783,"1,123.53",Revenue,SCOTTISH HYDRO ELECTRIC,130051
South Ribble Council,http://statistics.data.gov.uk/doc/local-authority/30UN,Property Services,Energy Costs,2307,CCL,12/05/2017,0000431783,50.00,Revenue,SCOTTISH HYDRO ELECTRIC,130051
South Ribble Council,http://statistics.data.gov.uk/doc/local-authority/30UN,Property Services,Energy Costs,2304,4/4/17 to 4/5/17,19/05/2017,0000432034,"1,286.98",Revenue,SCOTTISH HYDRO ELECTRIC,130051
South Ribble Council,http://statistics.data.gov.uk/doc/local-authority/30UN,Property Services,Energy Costs,2307,CCL,19/05/2017,0000432034,80.68,Revenue,SCOTTISH HYDRO ELECTRIC,130051
South Ribble Council,http://statistics.data.gov.uk/doc/local-authority/30UN,Property Services,Energy Costs,2303,2/2/17 to 1/5/17,31/05/2017,0000432266,355.70,Revenue,SCOTTISH HYDRO ELECTRIC,130051
South Ribble Council,http://statistics.data.gov.uk/doc/local-authority/30UN,Property Services,Energy Costs,2307,CCL,31/05/2017,0000432266,17.89,Revenue,SCOTTISH HYDRO ELECTRIC,130051
South Ribble Council,http://statistics.data.gov.uk/doc/local-authority/30UN,Property Services,Energy Costs,2303,1/4/17 to 30/4/17,31/05/2017,0000432267,374.27,Revenue,SCOTTISH HYDRO ELECTRIC,130051
South Ribble Council,http://statistics.data.gov.uk/doc/local-authority/30UN,Property Services,Energy Costs,2307,CCL,31/05/2017,0000432267,18.40,Revenue,SCOTTISH HYDRO ELECTRIC,130051
South Ribble Council,http://statistics.data.gov.uk/doc/local-authority/30UN,Property Services,Energy Costs,2303,1/4/17 to 30/4/17,31/05/2017,0000432270,"2,425.46",Revenue,SCOTTISH HYDRO ELECTRIC,130051
South Ribble Council,http://statistics.data.gov.uk/doc/local-authority/30UN,Property Services,Energy Costs,2307,CCL,31/05/2017,0000432270,128.53,Revenue,SCOTTISH HYDRO ELECTRIC,130051
South Ribble Council,http://statistics.data.gov.uk/doc/local-authority/30UN,Property Services,Energy Costs,2303,1/4/17 to 30/4/17,31/05/2017,0000432274,"1,732.36",Revenue,SCOTTISH HYDRO ELECTRIC,130051
South Ribble Council,http://statistics.data.gov.uk/doc/local-authority/30UN,Property Services,Energy Costs,2307,CCl,31/05/2017,0000432274,95.71,Revenue,SCOTTISH HYDRO ELECTRIC,130051
South Ribble Council,http://statistics.data.gov.uk/doc/local-authority/30UN,Property Services,Energy Costs,2303,1/4/17 to 30/4/17,31/05/2017,0000432275,936.10,Revenue,SCOTTISH HYDRO ELECTRIC,130051
South Ribble Council,http://statistics.data.gov.uk/doc/local-authority/30UN,Property Services,Energy Costs,2307,CCL,31/05/2017,0000432275,48.00,Revenue,SCOTTISH HYDRO ELECTRIC,130051
South Ribble Council,http://statistics.data.gov.uk/doc/local-authority/30UN,Customer Contact,Clothing- Uniforms & Laundry,4410,Please supply the following shirts / blouses as samples-Mens  Lilac  MS1040 long Sleeve Herringbone Shirt - Collar 16.5`` ,03/05/2017,0000431328,292.86,Revenue,SIMON JERSEY LTD,00072821
South Ribble Council,http://statistics.data.gov.uk/doc/local-authority/30UN,Customer Contact,Clothing- Uniforms & Laundry,4410,"Please can you supply the ladies uniform tops FB3110  Size 12  x  2 FB2590  Size 12  x  4 FB4590  size 12  x  1",10/05/2017,0000431868,392.52,Revenue,SIMON JERSEY LTD,00072821
South Ribble Council,http://statistics.data.gov.uk/doc/local-authority/30UN,Neighbourhood Admin & Support,Clothing- Uniforms & Laundry,4410,GLOVES - BLUE SIZE  9 ) PORTWEST A643 AMBER CUT RESISTANT - SRBC49,26/05/2017,0000432237,95.40,Revenue,SMART IMAGE WORKWEAR,00031503
South Ribble Council,http://statistics.data.gov.uk/doc/local-authority/30UN,Neighbourhood Admin & Support,Clothing- Uniforms & Laundry,4410,GLOVES - WINTER HV ORANGE GRAB & GRIP PORTWEST A185 SIZE 9 - SRBC17,26/05/2017,0000432237,32.40,Revenue,SMART IMAGE WORKWEAR,00031503
South Ribble Council,http://statistics.data.gov.uk/doc/local-authority/30UN,Neighbourhood Admin & Support,Clothing- Uniforms & Laundry,4410,GLOVES - WINTER HV ORANGE GRAB & GRIP PORTWEST A185 SIZE 8 - SRBC17,26/05/2017,0000432237,32.40,Revenue,SMART IMAGE WORKWEAR,00031503
South Ribble Council,http://statistics.data.gov.uk/doc/local-authority/30UN,Neighbourhood Admin & Support,Clothing- Uniforms & Laundry,4410,GLOVES - COWGRAIN LINED DRIVERS GLOVE MHS INTERNATIONAL - SRBC14,26/05/2017,0000432237,156.00,Revenue,SMART IMAGE WORKWEAR,00031503
South Ribble Council,http://statistics.data.gov.uk/doc/local-authority/30UN,HR & Communications,Agency Fees,1121,PAYMENT FOR NAME REDACTED INTERIM CHEIF EXECUTIVE,24/05/2017,0000432099,"17,010.00",Revenue,SOLACE IN BUSINESS LTD,00039990
South Ribble Council,http://statistics.data.gov.uk/doc/local-authority/30UN,HR & Communications,Agency Fees,1121,PAYMENT FOR NAME REDACTED INTERIM CHEIF EXECUTIVE,31/05/2017,0000432139,"22,630.00",Revenue,SOLACE IN BUSINESS LTD,00039990
South Ribble Council,http://statistics.data.gov.uk/doc/local-authority/30UN,Area 2 - Waste Transport/Eastern & Central Teams,Materials General,4040,"24 GRASS FLAILS, 24 BOLTS, 48 WASHERS, 24 NUTS - TMR02A3 - JFC8533 - BO",05/05/2017,0000431739,301.92,Revenue,SPALDINGS,00070849
South Ribble Council,http://statistics.data.gov.uk/doc/local-authority/30UN,Area 3 - Parks/Leyland East West,Grounds Maint Cntrctrs Chgs,4657,APPLY 2 COATS OF KEIM GRANITAL SILICATE BASED PROTECTIVE PAINT COATING TO WORDEN PARK FOUNTAIN ,31/05/2017,0000431891,"1,475.00",Revenue,Specialist UK Restoration Ltd,132056
South Ribble Council,http://statistics.data.gov.uk/doc/local-authority/30UN,Development Enterprise & Comm Mgnt,Other Misc,4851,Skills project development for Schools Workshop - Ref Leyland Truck Trail April 2017,24/05/2017,0000431846,"2,480.00",Revenue,STEMFirst Ltd,132095
South Ribble Council,http://statistics.data.gov.uk/doc/local-authority/30UN,Development Enterprise & Comm Mgnt,Other Misc,4851,"Truck Trail Set up and management of Twitter, Instagram & Facebook between Feb- Sept 2017 @4,850.00",05/05/2017,0000431689,550.00,Revenue,STONE CREATE LTD,130896
South Ribble Council,http://statistics.data.gov.uk/doc/local-authority/30UN,Development Enterprise & Comm Mgnt,Other Misc,4851,Wrapping trucks prior to installation,24/05/2017,0000431916,280.50,Revenue,STONE CREATE LTD,130896
South Ribble Council,http://statistics.data.gov.uk/doc/local-authority/30UN,Development Enterprise & Comm Mgnt,Other Misc,4851,Publicity materials - design Costs: Truck Trail Map � Front page 225 advertisements set up 225 A5 flyers 115 Colouring Book,12/05/2017,0000431917,883.50,Revenue,STONE CREATE LTD,130896
South Ribble Council,http://statistics.data.gov.uk/doc/local-authority/30UN,Development Enterprise & Comm Mgnt,Other Misc,4851,Other Misc,24/05/2017,0000432059,520.00,Revenue,STONE CREATE LTD,130896
South Ribble Council,http://statistics.data.gov.uk/doc/local-authority/30UN,Development Enterprise & Comm Mgnt,Other Misc,4851,Other Misc,24/05/2017,0000432100,270.00,Revenue,STONE CREATE LTD,130896
South Ribble Council,http://statistics.data.gov.uk/doc/local-authority/30UN,Development Enterprise & Comm Mgnt,Other Misc,4851,"Truck Trail App Design, development and build across 3 operating platforms @5,375",26/05/2017,0000432178,"5,375.00",Revenue,STONE CREATE LTD,130896
South Ribble Council,http://statistics.data.gov.uk/doc/local-authority/30UN,Housing,Cap Grant- Improve Grants,C570,DFG Works at ADDRESS REDACTED,19/05/2017,0000432058,"8,696.34",Revenue,STRINGFELLOW BUILDING CONTRACTORS,00113214
South Ribble Council,http://statistics.data.gov.uk/doc/local-authority/30UN,Housing,Cap Grant- Improve Grants,C570,DFG works at ADDRESS REDACTED,24/05/2017,0000432155,"2,905.00",Revenue,STRINGFELLOW BUILDING CONTRACTORS,00113214
South Ribble Council,http://statistics.data.gov.uk/doc/local-authority/30UN,Regeneration,Capital Expenditure,C234,Leyland train station survey.,26/05/2017,0000432202,"1,575.00",Revenue,SURVEY OPERATIONS LTD,00060697
South Ribble Council,http://statistics.data.gov.uk/doc/local-authority/30UN,Area 3 - Parks/Leyland East West,Grounds Maint Cntrctrs Chgs,4657,3x DZA179 Stepping pod moulded (top only),26/05/2017,0000432090,240.03,Revenue,SUTCLIFFE PLAY LTD,00034953
South Ribble Council,http://statistics.data.gov.uk/doc/local-authority/30UN,Area 3 - Parks/Leyland East West,Grounds Maint Cntrctrs Chgs,4657,carriage,26/05/2017,0000432090,24.00,Revenue,SUTCLIFFE PLAY LTD,00034953
South Ribble Council,http://statistics.data.gov.uk/doc/local-authority/30UN,Neighbourhood Admin & Support,Clothing- Uniforms & Laundry,4410,DISPOSABLE GLOVES NITRILE (BOX- 100) size medium - NITPF + MEDIUM,24/05/2017,0000432112,88.50,Revenue,SWIFT KLEEN,00119360
South Ribble Council,http://statistics.data.gov.uk/doc/local-authority/30UN,Neighbourhood Admin & Support,Clothing- Uniforms & Laundry,4410,DISPOSABLE GLOVES NITRILE (BOX- 100) size large - NITPF + LARGE,24/05/2017,0000432112,106.20,Revenue,SWIFT KLEEN,00119360
South Ribble Council,http://statistics.data.gov.uk/doc/local-authority/30UN,Neighbourhood Admin & Support,Materials General,4040,39`` BLACK BIN LINER HD 200 - 39BBL,24/05/2017,0000432112,117.00,Revenue,SWIFT KLEEN,00119360
South Ribble Council,http://statistics.data.gov.uk/doc/local-authority/30UN,Homelessness,Contractors Charges 5,5311,SRBC placements ADDRESS REDACTED JC 26 Nights 6/3/17-31/3/17  780 PW 25 nights 30/3/17-23/4/17 750,03/05/2017,0000431690,750.00,Revenue,Temporary Housing Solutions Ltd,132118
South Ribble Council,http://statistics.data.gov.uk/doc/local-authority/30UN,Homelessness,Contractors Charges 5,5311,SRBC placements ADDRESS REDACTED JC 26 Nights 6/3/17-31/3/17  780 PW 25 nights 30/3/17-23/4/17 750,03/05/2017,0000431691,780.00,Revenue,Temporary Housing Solutions Ltd,132118
South Ribble Council,http://statistics.data.gov.uk/doc/local-authority/30UN,Homelessness,Contractors Charges 5,5311,ADDRESS REDACTED placement JC 14 days 20/2/17-5/3/17  420,03/05/2017,0000431692,420.00,Revenue,Temporary Housing Solutions Ltd,132118
South Ribble Council,http://statistics.data.gov.uk/doc/local-authority/30UN,Area 2 - Waste Transport/Eastern & Central Teams,External Contractors Charges,4570,Spec repair - VO65KRE - JFC8531 - ,17/05/2017,0000431771,"1,993.66",Revenue,TERBERG MATEC UK LTD,00058625
South Ribble Council,http://statistics.data.gov.uk/doc/local-authority/30UN,Area 2 - Waste Transport/Eastern & Central Teams,Materials General,4040,1 DAMPER - PJ62 UCM - JFC8653 - ,17/05/2017,0000431999,385.00,Revenue,TERBERG MATEC UK LTD,00058625
South Ribble Council,http://statistics.data.gov.uk/doc/local-authority/30UN,Neighbourhood Admin & Support,External Contractors Charges,4570,ELITE STANDARD SUPPORT  Annual Hardware Support 1.6.17  - 31.5.18,24/05/2017,0000432071,843.42,Revenue,TRISCAN SYSTEMS LIMITED,00108339
South Ribble Council,http://statistics.data.gov.uk/doc/local-authority/30UN,Information Services,Office Machines Maintenance,4026,Service & Maintenance Contract for HiPath 4000 for period 16/05/17 - 15/05/18,03/05/2017,0000431668,"9,104.16",Revenue,UNIFY ENTERPRISE COMMUNICATIONS LTD,00109765
South Ribble Council,http://statistics.data.gov.uk/doc/local-authority/30UN,Environmental Health,Consultancy Fees,4542,Analysis of Water Samples from April 16 - March 17.,03/05/2017,0000431712,331.70,Revenue,UNITED UTILITIES WATER PLC,130293
South Ribble Council,http://statistics.data.gov.uk/doc/local-authority/30UN,Property Services,Operational Furniture & Equip,4013,2017 / 2018 contract LCC/2017 for the refrigeration units at the Civic Centre,10/05/2017,0000431874,"1,260.00",Revenue,UNIVERSAL COOLING LTD,130914
South Ribble Council,http://statistics.data.gov.uk/doc/local-authority/30UN,Property Services,Rep & Maint Premises,2020,Annual Contract for Maintenance 2017 - 2018  Contract  Number 05351 Civic Centre,12/05/2017,0000431934,"2,247.20",Revenue,UNIVERSAL COOLING LTD,130914
South Ribble Council,http://statistics.data.gov.uk/doc/local-authority/30UN,Property Services,Rep & Maint Premises,2020,Annual Contract  for maintenance 2017 - 2018 contract number 05351 Moss Side Depot,12/05/2017,0000431934,242.40,Revenue,UNIVERSAL COOLING LTD,130914
South Ribble Council,http://statistics.data.gov.uk/doc/local-authority/30UN,Property Services,Rep & Maint Premises,2020,Annual Contract for maintenance 2017 - 2018 contract number 05351 Worden Park,12/05/2017,0000431934,242.40,Revenue,UNIVERSAL COOLING LTD,130914
South Ribble Council,http://statistics.data.gov.uk/doc/local-authority/30UN,Property Services,Operational Furniture & Equip,4012,Annual Contract for 2017/2018 to cover the rental and the vending  machines at the Civic Centre,10/05/2017,0000431711,322.09,Revenue,VENDING ENTERPRISES,00101501
South Ribble Council,http://statistics.data.gov.uk/doc/local-authority/30UN,Information Services,Peripherals,4269,"Annual purchase order for ISDN lines, line rentals & call charges for period 01/04/17 - 31/03/18",05/05/2017,0000431752,"1,300.38",Revenue,VODAFONE RE:CABLE & WIRELESS UK,130810
South Ribble Council,http://statistics.data.gov.uk/doc/local-authority/30UN,Information Services,Peripherals,4247,"Moss Side link, internet & router - May 17",12/05/2017,0000431864,"1,312.66",Revenue,VODAFONE RE:CABLE & WIRELESS UK,130810
South Ribble Council,http://statistics.data.gov.uk/doc/local-authority/30UN,Customer Contact,Clothing- Uniforms & Laundry,4410,Please supply the following Daisy Tops in BERR Size S  x 4 Size M x  15 size L  x  8 size XXL  x 5 total 32 tops,05/05/2017,0000431742,536.00,Revenue,VORTEX DESIGNS LTD,131088
South Ribble Council,http://statistics.data.gov.uk/doc/local-authority/30UN,Customer Contact,Clothing- Uniforms & Laundry,4410,carriage,05/05/2017,0000431742,6.00,Revenue,VORTEX DESIGNS LTD,131088
South Ribble Council,http://statistics.data.gov.uk/doc/local-authority/30UN,HR & Communications,Advertising,4848,WORK CARRIED OUT FOR SOCIAL MEDIA CONCERNS/DEFAMATION,12/05/2017,0000431898,600.00,Revenue,WEIGHTMANS LLP,00120867
South Ribble Council,http://statistics.data.gov.uk/doc/local-authority/30UN,Legal,Agency Fees,1121,Weightmans Solicitors (NAME REDACTED) to carry out an investigation into the leaked confidential licensing report.,10/05/2017,0000431899,"1,710.00",Revenue,WEIGHTMANS LLP,00120867
South Ribble Council,http://statistics.data.gov.uk/doc/local-authority/30UN,Housing,Capital Expenditure,C234,Legal fees in relation to the CPO of ADDRESS REDACTED,26/05/2017,0000432228,"2,925.00",Revenue,WEIGHTMANS LLP,00120867
South Ribble Council,http://statistics.data.gov.uk/doc/local-authority/30UN,Revenues Plus,Postage,4291,Revs Post April 2017,05/05/2017,0000431756,287.95,Revenue,WHISTL  UK LTD,131310
South Ribble Council,http://statistics.data.gov.uk/doc/local-authority/30UN,Revenues Plus,Postage,4291,Revs Post March 2017,10/05/2017,0000431872,"1,332.32",Revenue,WHISTL  UK LTD,131310
South Ribble Council,http://statistics.data.gov.uk/doc/local-authority/30UN,Area 3 - Parks/Leyland East West,Grounds Maint Cntrctrs Chgs,4657,4 x 4061-091 Chain Assembly @ 39.00,05/05/2017,0000431556,156.00,Revenue,WICKSTEED LEISURE LTD,00038661
South Ribble Council,http://statistics.data.gov.uk/doc/local-authority/30UN,Area 3 - Parks/Leyland East West,Grounds Maint Cntrctrs Chgs,4657,8 x 2621-002 Small `dee` Shackle @ 10.,05/05/2017,0000431556,80.00,Revenue,WICKSTEED LEISURE LTD,00038661
South Ribble Council,http://statistics.data.gov.uk/doc/local-authority/30UN,Area 3 - Parks/Leyland East West,Grounds Maint Cntrctrs Chgs,4657,8 x 223-023 1/8 x 5/8 Sellock Pin @ 0.45,05/05/2017,0000431556,3.60,Revenue,WICKSTEED LEISURE LTD,00038661
South Ribble Council,http://statistics.data.gov.uk/doc/local-authority/30UN,Area 3 - Parks/Leyland East West,Grounds Maint Cntrctrs Chgs,4657,4 x 2511-045 5/8 x 3/8 x 7/8 Oilite bush CTS @ 2.74,05/05/2017,0000431556,10.96,Revenue,WICKSTEED LEISURE LTD,00038661
South Ribble Council,http://statistics.data.gov.uk/doc/local-authority/30UN,Area 3 - Parks/Leyland East West,Grounds Maint Cntrctrs Chgs,4657,4 x 2512-001 Nylon Basket Bush @ 1.42,05/05/2017,0000431556,5.68,Revenue,WICKSTEED LEISURE LTD,00038661
South Ribble Council,http://statistics.data.gov.uk/doc/local-authority/30UN,Area 3 - Parks/Leyland East West,Grounds Maint Cntrctrs Chgs,4657,Carriage 8.5 %,05/05/2017,0000431556,21.78,Revenue,WICKSTEED LEISURE LTD,00038661
South Ribble Council,http://statistics.data.gov.uk/doc/local-authority/30UN,Shared Financial Services,Professional Fees,4513,legal advice,10/05/2017,0000431524,"5,552.00",Revenue,WILKIN CHAPMAN LLP,131825
South Ribble Council,http://statistics.data.gov.uk/doc/local-authority/30UN,Customer Contact,Clothing- Uniforms & Laundry,4410,Please supply the follow Shirts H14-6 Striped Short Sleeve   Business Shirt with semi cutaway collar Purple collar 16.5  x 9  ,03/05/2017,0000431696,420.95,Revenue,Workwear Express,131398
South Ribble Council,http://statistics.data.gov.uk/doc/local-authority/30UN,HR & Communications,Training Expense-Course Fees,1408,OCC HEALTH ACTIVITY FOR APRIL 2017,17/05/2017,0000432045,600.00,Revenue,WRIGHTINGTON WIGAN & LEIGH NHS FOUNDATION TRUST,131288
South Ribble Council,http://statistics.data.gov.uk/doc/local-authority/30UN,HR & Communications,Training Expense-Course Fees,1408,Course Fees ,17/05/2017,0000432045,143.00,Revenue,WRIGHTINGTON WIGAN & LEIGH NHS FOUNDATION TRUST,131288
South Ribble Council,http://statistics.data.gov.uk/doc/local-authority/30UN,Planning,Professional Fees,4510,"Professional consultancy services in connection with Tesco, Penwortham",12/05/2017,0000431966,"3,500.00",Revenue,WYG ENVIRONMENT TRANSPORT LIMITED,130177
